bitfinex/quotes_ETHUSD_20250115
["timestamp","ask_amount","ask_price","bid_price","bid_amount"]
[1736923494539,3.0976,3228.3,3228.1,1.2972955]
[1736923496040,3.0976,3228.3,3228.0,1.4752955]
[1736923498534,3.09743,3228.5,3228.0,1.4752955]
[1736923499936,3.09743,3228.5,3228.1,1.2972955]
[1736923500738,3.09752,3228.4,3228.1,1.2972955]
[1736923500901,3.09752,3228.4,3228.2,0.176]
[1736923503333,1.38430125,3228.7,3228.2,0.176]
[1736923503631,3.88327,3228.9,3228.2,0.176]
[1736923503632,0.78,3229.2,3228.3,0.7855]
[1736923503835,3.09682,3229.2,3228.4,0.7855]
[1736923504132,4.48112125,3229.2,3228.4,0.7855]
[1736923504523,4.48112125,3229.2,3228.8,1.2972955]
[1736923505306,3.09682,3229.2,3228.7,1.2972955]
[1736923505841,3.09682,3229.2,3228.8,1.2972955]
[1736923508954,3.09682,3229.2,3228.9,1.2972955]
[1736923510260,3.09682,3229.2,3228.7,1.2972955]
[1736923510437,3.70341031,3229.5,3228.7,1.2972955]
[1736923510641,3.09688,3229.1,3228.7,1.2972955]
[1736923512528,3.09688,3229.1,3228.8,0.7843]
[1736923513049,3.09688,3229.1,3228.8,2.0815955]
[1736923514841,3.09688,3229.1,3228.8,0.7843]
[1736923518770,0.829,3230.1,3229.0,0.7533]
[1736923518940,3.09598,3230.0,3229.2,0.7533]
[1736923519140,3.09607,3229.9,3229.2,0.7533]
[1736923519871,3.09607,3229.9,3229.4,1.2972955]
[1736923521154,2.92341031,3230.3,3229.3,1.2972955]
[1736923521369,3.09637,3229.6,3229.4,0.174]
[1736923521536,3.09637,3229.6,3229.3,1.2972955]
[1736923521858,3.09637,3229.6,3229.4,0.174]
[1736923524586,3.09645,3229.5,3229.4,0.174]
[1736923524893,3.09645,3229.5,3229.0,1.2972955]
[1736923524894,3.09668,3229.3,3229.0,1.2972955]
[1736923525186,0.829,3229.5,3229.0,1.2972955]
[1736923525187,3.09683,3229.1,3229.0,1.4712955]
[1736923525350,3.09683,3229.1,3229.0,0.174]
[1736923526058,6.84924031,3229.1,3228.5,1.2972955]
[1736923526258,0.68492403,3229.0,3228.6,0.174]
[1736923526664,3.09722,3228.7,3228.6,0.174]
[1736923526872,3.09722,3228.7,3228.4,1.94726849]
[1736923526873,3.09705,3228.9,3228.4,0.7533]
[1736923527089,3.09705,3228.9,3228.6,0.174]
[1736923527892,3.09663,3229.4,3228.7,0.7533]
[1736923528386,3.09678,3229.2,3228.7,0.7533]
[1736923528986,3.09678,3229.2,3228.8,0.174]
[1736923529792,3.09655,3229.4,3228.8,0.174]
[1736923531259,3.09655,3229.4,3228.8,1.4712955]
[1736923531883,3.09634,3229.7,3228.9,0.7533]
[1736923532581,3.09634,3229.7,3228.9,2.0505955]
[1736923533116,3.09634,3229.7,3228.9,1.2972955]
[1736923533408,0.829,3229.9,3229.0,0.7889]
[1736923533409,3.09615,3229.9,3229.0,0.7889]
[1736923534226,3.09615,3229.9,3229.1,1.2972955]
[1736923534374,3.09615,3229.9,3229.2,0.7889]
[1736923537604,3.0962,3229.8,3229.2,0.7889]
[1736923539393,3.09631,3229.7,3229.2,0.7889]
[1736923540593,3.09646,3229.5,3229.2,0.7889]
[1736923543954,3.09629,3229.7,3229.2,0.7889]
[1736923546344,3.09629,3229.7,3229.2,2.0861955]
[1736923547740,3.09629,3229.7,3229.2,0.7889]
[1736923548431,3.09609,3229.9,3229.2,2.0861955]
[1736923549074,3.09609,3229.9,3229.3,1.2972955]
[1736923549919,3.09609,3229.9,3229.4,0.7633]
[1736923550246,3.0959,3230.1,3229.4,0.7633]
[1736923550744,3.09599,3230.0,3229.6,1.2972955]
[1736923550941,3.09599,3230.0,3229.7,0.174]
[1736923552855,3.09582,3230.2,3229.7,0.174]
[1736923553023,3.09582,3230.2,3229.8,0.7633]
[1736923553661,3.09538,3230.7,3229.8,0.7633]
[1736923554422,3.09538,3230.7,3230.0,1.2972955]
[1736923554623,3.09538,3230.7,3230.1,0.7633]
[1736923572796,0.8186,3231.2,3230.2,1.38246758]
[1736923572998,3.09497,3231.1,3230.3,0.832]
[1736923573179,3.09497,3231.1,3230.5,0.832]
[1736923573378,3.09497,3231.1,3230.6,0.174]
[1736923574708,3.0953,3230.7,3230.6,0.174]
[1736923574865,3.09511,3230.9,3230.3,1.29815409]
[1736923575069,3.09511,3230.9,3230.4,0.174]
[1736923575070,3.09555,3230.5,3230.4,0.174]
[1736923575302,3.09549,3230.5,3230.4,0.174]
[1736923575501,3.88079,3230.5,3230.4,0.174]
[1736923577266,3.88079,3230.5,3230.0,0.832]
[1736923577267,0.7853,3230.5,3229.5,4.29815409]
[1736923577613,3.09588,3230.1,3229.6,1.006]
[1736923578303,0.7853,3230.5,3229.6,1.006]
[1736923578509,3.09572,3230.3,3229.6,1.006]
[1736923579917,3.09572,3230.3,3229.6,2.30415409]
[1736923580274,3.09578,3230.2,3229.6,2.30415409]
[1736923581212,3.09578,3230.2,3229.7,0.174]
[1736923581611,3.09609,3229.9,3229.6,0.832]
[1736923581779,3.09617,3229.8,3229.7,0.174]
[1736923581979,3.8813,3230.0,3229.7,0.174]
[1736923582182,3.096,3230.0,3229.7,0.174]
[1736923582577,3.09582,3230.2,3229.7,0.174]
[1736923582794,3.09561,3230.4,3229.8,0.832]
[1736923583002,0.7853,3230.5,3229.8,0.832]
[1736923583203,3.09568,3230.3,3229.8,0.832]
[1736923583401,3.09578,3230.2,3229.8,0.832]
[1736923583625,0.7853,3230.2,3229.5,1.29815409]
[1736923583797,3.09621,3229.8,3229.6,0.174]
[1736923584414,3.096,3230.0,3229.6,0.174]
[1736923584617,0.7853,3230.2,3229.6,0.174]
[1736923584796,3.88108,3230.2,3229.6,0.174]
[1736923584991,4.569188,3230.2,3229.7,0.832]
[1736923585328,3.783888,3230.2,3229.7,0.832]
[1736923587630,3.09578,3230.2,3229.7,0.832]
[1736923587807,3.09562,3230.4,3229.7,0.832]
[1736923590106,2.92165176,3230.6,3229.7,0.832]
[1736923590308,3.09601,3230.0,3229.8,0.174]
[1736923591441,3.405611,3230.0,3229.8,0.174]
[1736923593396,3.09601,3230.0,3229.8,0.174]
[1736923594329,2.92165176,3230.3,3229.8,0.174]
[1736923594657,3.09607,3229.9,3229.8,0.174]
[1736923599659,3.91447,3229.9,3229.8,0.174]
[1736923600529,3.09644,3229.6,3229.2,0.8151]
[1736923600817,3.09644,3229.6,3229.3,0.174]
[1736923601968,0.8184,3229.9,3229.3,0.174]
[1736923602121,0.8184,3230.1,3229.3,0.174]
[1736923602323,3.09616,3229.9,3229.4,0.8151]
[1736923602868,3.09619,3229.8,3229.4,0.8151]
[1736923604046,3.09628,3229.7,3229.4,0.8151]
[1736923605539,3.09255173,3229.7,3229.4,0.8151]
[1736923608183,3.09255173,3229.7,3229.5,0.174]
[1736923608764,0.8184,3229.9,3229.1,0.7624]
[1736923608946,0.8184,3229.9,3229.6,0.174]
[1736923608947,3.09626,3229.7,3229.6,0.174]
[1736923616269,3.09626,3229.7,3228.9,1.29815409]
[1736923616270,3.86038,3229.4,3228.9,2.10075409]
[1736923616432,3.86038,3229.4,3229.0,0.177]
[1736923617175,3.09683,3229.1,3229.0,0.177]
[1736923617468,3.09695,3229.0,3228.7,1.29815409]
[1736923617678,3.86075,3229.0,3228.9,0.177]
[1736923618573,3.86075,3229.0,3228.8,0.177]
[1736923618574,3.09711,3228.9,3228.8,0.177]
[1736923620782,3.09733,3228.6,3228.2,0.8026]
[1736923621192,3.09733,3228.6,3228.3,0.177]
[1736923621654,3.09733,3228.6,3228.4,0.177]
[1736923623273,3.09733,3228.6,3228.2,0.8026]
[1736923623476,3.09733,3228.6,3228.5,0.177]
[1736923623642,3.09733,3228.6,3228.2,0.8026]
[1736923623843,3.09733,3228.6,3228.5,0.177]
[1736923628375,3.09721,3228.8,3228.5,0.177]
[1736923629190,3.09721,3228.8,3228.6,0.7971]
[1736923630193,3.09695,3229.0,3228.6,0.7971]
[1736923634321,3.09675,3229.2,3228.6,0.7971]
[1736923636758,3.09687,3229.1,3228.6,0.7971]
[1736923639310,0.7992,3229.6,3228.6,0.7971]
[1736923639525,3.09659,3229.4,3228.6,0.7971]
[1736923639732,3.09623,3229.8,3228.7,0.03097137]
[1736923639883,3.09623,3229.8,3228.8,0.8269]
[1736923641009,3.09626,3229.7,3228.8,0.8269]
[1736923641214,3.09648,3229.5,3228.8,0.8269]
[1736923642318,3.09627,3229.7,3228.8,0.85786831]
[1736923642878,3.09627,3229.7,3228.9,1.29815409]
[1736923643237,3.09627,3229.7,3229.1,0.8269]
[1736923647690,3.09627,3229.7,3229.2,0.176]
[1736923648221,3.0,3230.2,3229.2,0.176]
[1736923648431,3.09609,3229.9,3229.3,0.8269]
[1736923649024,3.09617,3229.8,3229.3,0.8269]
[1736923649403,3.09617,3229.8,3229.4,0.176]
[1736923654655,3.09596,3230.1,3229.4,0.176]
[1736923654822,0.62610702,3230.2,3229.5,0.84896467]
[1736923655026,3.72189702,3230.2,3229.5,0.818]
[1736923655546,3.09603,3230.0,3229.5,0.818]
[1736923656332,3.09603,3230.0,3229.6,0.176]
[1736923656624,3.09603,3230.0,3229.5,0.818]
[1736923656947,3.09603,3230.0,3229.6,0.176]
[1736923661162,3.09565,3230.4,3229.7,0.818]
[1736923661355,3.09581,3230.2,3229.7,0.818]
[1736923661539,3.09581,3230.2,3229.8,0.176]
[1736923664441,3.09596,3230.1,3229.8,0.176]
[1736923664861,3.09598,3230.0,3229.8,0.176]
[1736923665051,2.1686261,3230.1,3229.8,0.176]
[1736923665252,0.21686261,3230.0,3229.8,0.176]
[1736923666099,1.3830261,3229.9,3229.2,0.818]
[1736923666386,3.09673,3229.3,3229.1,1.29815409]
[1736923666600,3.09673,3229.3,3229.2,0.176]
[1736923667155,3.54470561,3229.3,3229.2,0.176]
[1736923667386,3.54470561,3229.3,3229.0,1.29815409]
[1736923667387,3.09675,3229.2,3229.0,1.29815409]
[1736923667587,3.09675,3229.2,3228.8,0.818]
[1736923667588,3.09675,3229.2,3229.1,0.176]
[1736923669978,3.88216,3229.4,3229.1,0.176]
[1736923670185,3.09656,3229.4,3229.1,0.176]
[1736923671694,3.09638,3229.6,3229.2,0.774]
[1736923671994,3.09616,3229.9,3229.2,0.774]
[1736923672654,3.09589,3230.1,3229.2,0.80496593]
[1736923672969,3.09589,3230.1,3229.2,0.774]
[1736923673796,3.09589,3230.1,3229.4,0.774]
[1736923675533,3.09589,3230.1,3229.4,2.07215409]
[1736923678479,4.32751186,3230.5,3229.4,2.07215409]
[1736923678686,3.09608,3229.9,3229.4,2.07215409]
[1736923678994,3.09628,3229.7,3229.5,0.176]
[1736923679822,3.09628,3229.7,3229.4,0.774]
[1736923680023,3.09635,3229.6,3229.5,0.176]
[1736923682456,3.488125,3229.6,3229.5,0.176]
[1736923683853,3.09635,3229.6,3229.5,0.176]
[1736923688731,3.09664,3229.3,3229.2,1.29815409]
[1736923689103,3.09683,3229.1,3229.0,1.29815409]
[1736923690047,3.09683,3229.1,3228.7,0.176]
[1736923693146,3.09695,3229.0,3228.7,0.176]
[1736923699637,3.09695,3229.0,3228.8,0.7778]
[1736923699957,1.36780582,3229.4,3228.8,0.7778]
[1736923700123,3.09676,3229.2,3228.8,0.7778]
[1736923703368,3.09684,3229.1,3228.8,0.7778]
[1736923703567,3.09694,3229.0,3228.8,0.7778]
[1736923705574,3.09676,3229.2,3228.8,0.7778]
[1736923707440,3.09684,3229.1,3228.8,0.7778]
[1736923710380,3.09702,3228.9,3228.7,0.176]
[1736923710902,3.09702,3228.9,3228.7,1.47415409]
[1736923711400,3.09702,3228.9,3228.7,0.176]
[1736923717493,3.09682,3229.2,3228.7,0.176]
[1736923717663,3.09683,3229.1,3228.7,0.176]
[1736923718066,2.78228802,3229.5,3228.7,0.176]
[1736923718265,3.09697,3229.0,3228.7,0.176]
[1736923718499,2.78228802,3229.5,3228.8,0.7835]
[1736923719400,1.39847284,3229.5,3228.8,0.7835]
[1736923719767,3.09675,3229.2,3228.8,0.7835]
[1736923721008,6.80809039,3229.9,3228.8,0.81447021]
[1736923721167,6.80809039,3229.9,3228.9,0.7835]
[1736923721168,3.09654,3229.5,3228.9,0.7835]
[1736923721695,3.09654,3229.5,3228.9,2.08165409]
[1736923722106,3.09654,3229.5,3229.0,1.29815409]
[1736923722803,3.09657,3229.4,3229.0,1.29815409]
[1736923723301,3.09668,3229.3,3229.0,1.29815409]
[1736923724302,3.09668,3229.3,3228.9,2.08165409]
[1736923725001,3.09668,3229.3,3229.0,1.29815409]
[1736923726701,0.309668,3229.3,3228.9,2.12123114]
[1736923727002,3.09693,3229.0,3228.9,2.12123114]
[1736923727371,3.09693,3229.0,3228.9,0.174]
[1736923737336,3.09693,3229.0,3228.9,1.47447916]
[1736923740235,3.09693,3229.0,3228.9,0.174]
[1736923740614,3.09693,3229.0,3228.9,1.47447916]
[1736923741438,3.09693,3229.0,3228.9,0.174]
[1736923743110,3.09693,3229.0,3228.9,0.9314]
[1736923743533,3.09673,3229.3,3228.9,0.9314]
[1736923743730,6.09623,3229.8,3229.0,0.7574]
[1736923743731,3.09643,3229.6,3229.0,0.7574]
[1736923744055,0.61882923,3229.8,3229.1,0.03096717]
[1736923744238,3.0963,3229.7,3229.1,0.7574]
[1736923744436,3.0963,3229.7,3229.2,1.30047916]
[1736923744752,3.0963,3229.7,3229.3,0.7574]
[1736923744900,0.62651842,3230.1,3229.4,0.7574]
[1736923745251,3.09616,3229.8,3229.4,2.14129871]
[1736923745538,3.09616,3229.8,3229.4,2.05787916]
[1736923746046,3.09616,3229.8,3229.5,1.30047916]
[1736923746757,0.62651842,3230.1,3229.5,1.30047916]
[1736923746921,3.09634,3229.7,3229.5,1.30047916]
[1736923747616,3.09634,3229.7,3229.4,2.05787916]
[1736923748048,3.09261334,3229.7,3229.4,0.7574]
[1736923748367,3.09645,3229.5,3229.3,1.30047916]
[1736923749519,3.09645,3229.5,3229.1,7.43787916]
[1736923750873,3.09645,3229.5,3229.2,1.30047916]
[1736923751035,3.09656,3229.4,3229.2,1.30047916]
[1736923753762,3.09656,3229.4,3229.1,2.05787916]
[1736923756165,3.09656,3229.4,3229.2,1.30047916]
[1736923756653,3.09656,3229.4,3229.1,2.05787916]
[1736923757535,3.09643,3229.6,3229.1,2.05787916]
[1736923757735,0.7824,3229.9,3229.1,2.05787916]
[1736923757936,3.09647,3229.5,3229.3,1.30047916]
[1736923758660,3.09647,3229.5,3229.2,1.30047916]
[1736923762858,3.09625,3229.8,3229.2,1.33144507]
[1736923763053,3.09625,3229.8,3229.3,0.7574]
[1736923763361,3.09601,3230.0,3229.3,0.7574]
[1736923764076,3.09608,3229.9,3229.3,0.7574]
[1736923765383,3.09586,3230.2,3229.7,0.7574]
[1736923765587,3.09586,3230.2,3229.8,0.174]
[1736923766759,3.09557,3230.5,3229.9,0.7574]
[1736923767134,0.7824,3230.7,3229.9,0.7574]
[1736923767461,1.40713826,3230.7,3229.9,0.7574]
[1736923767880,1.40713826,3230.7,3229.9,2.05706616]
[1736923768083,3.09569,3230.3,3229.9,2.05706616]
[1736923768384,3.09569,3230.3,3229.9,0.7574]
[1736923768963,4.40713826,3230.7,3229.9,0.7574]
[1736923769278,3.0958,3230.2,3229.9,0.7574]
[1736923778897,3.9046,3230.2,3229.6,2.12336616]
[1736923779194,3.09577,3230.3,3229.7,0.174]
[1736923779399,3.0958,3230.2,3229.8,0.8237]
[1736923782607,3.09511,3230.9,3229.8,0.85465775]
[1736923782608,3.09563,3230.4,3229.8,0.85465775]
[1736923783276,3.09563,3230.4,3229.8,1.33062391]
[1736923783477,3.0957,3230.3,3229.9,0.8035]
[1736923784082,3.09551,3230.5,3229.9,0.8035]
[1736923785121,3.09551,3230.5,3229.9,2.10316616]
[1736923785265,0.7948,3230.8,3229.9,2.13412149]
[1736923785471,3.09533,3230.7,3230.0,0.8035]
[1736923785680,3.09533,3230.7,3230.1,0.83445502]
[1736923786427,3.09513,3230.9,3230.1,0.83445502]
[1736923787486,3.09513,3230.9,3230.2,1.29966616]
[1736923787685,3.09522,3230.8,3230.3,0.8035]
[1736923789196,3.09509,3231.0,3230.3,0.83445276]
[1736923789400,3.09511,3230.9,3230.3,0.83445276]
[1736923790588,3.09516,3230.9,3230.3,0.83445276]
[1736923791088,3.09516,3230.9,3230.3,2.13411892]
[1736923791530,3.09516,3230.9,3230.4,0.7683]
[1736923793428,3.09516,3230.9,3230.4,2.15036004]
[1736923804608,3.095,3231.1,3230.4,2.15036004]
[1736923804941,0.7615,3231.3,3230.4,2.15036004]
[1736923805147,3.09503,3231.0,3230.4,2.15036004]
[1736923806049,3.09503,3231.0,3230.4,3.4500262]
[1736923806248,3.09503,3231.0,3230.5,0.174]
[1736923808145,3.09503,3231.0,3230.5,1.47366616]
[1736923811656,3.09485,3231.2,3230.5,1.47366616]
[1736923811955,6.1252,3231.5,3230.6,2.16156004]
[1736923812115,3.09474,3231.3,3230.7,0.81044973]
[1736923812534,3.09465,3231.4,3230.7,0.7795]
[1736923812756,3.09448,3231.6,3230.9,0.7795]
[1736923812964,3.09448,3231.6,3231.0,1.38206004]
[1736923813136,3.09448,3231.6,3231.0,2.16156004]
[1736923814049,3.09448,3231.6,3231.0,3.4612262]
[1736923815930,3.09434,3231.7,3231.2,1.38206004]
[1736923816459,3.71567434,3231.9,3231.2,1.38206004]
[1736923817066,3.09427,3231.8,3231.1,2.07916616]
[1736923817393,3.09436,3231.7,3231.1,2.07916616]
[1736923818274,3.09445,3231.6,3231.1,2.07916616]
[1736923818566,3.09453,3231.5,3231.1,2.07916616]
[1736923818768,3.09463,3231.4,3231.1,0.7795]
[1736923819858,3.91247,3231.6,3231.1,0.7795]
[1736923820863,0.818,3231.6,3231.1,0.7795]
[1736923821171,3.09457,3231.5,3231.1,0.7795]
[1736923823998,3.09438,3231.7,3231.1,2.16156004]
[1736923824294,3.09416,3231.9,3231.3,1.38206004]
[1736923824499,3.09416,3231.9,3231.4,0.176]
[1736923824878,3.09427,3231.8,3231.4,0.176]
[1736923825397,3.09408,3232.0,3231.5,0.8088]
[1736923825602,3.0939,3232.2,3231.5,2.19086004]
[1736923825901,3.0939,3232.2,3231.8,0.8088]
[1736923828996,0.818,3232.4,3231.8,0.8088]
[1736923829601,3.09405,3232.1,3231.8,0.8088]
[1736923829770,3.09417,3231.9,3231.5,0.8088]
[1736923830168,2.20006004,3232.4,3231.5,0.8088]
[1736923830479,3.09426,3231.8,3231.6,0.176]
[1736923832401,3.9121,3232.0,3231.6,0.176]
[1736923832570,3.0941,3232.0,3231.7,0.8088]
[1736923837498,3.09388,3232.2,3231.7,2.19086004]
[1736923844482,3.09388,3232.2,3231.7,0.8088]
[1736923851791,3.09388,3232.2,3231.7,2.10599612]
[1736923852090,3.09388,3232.2,3231.7,0.8088]
[1736923853962,3.09388,3232.2,3231.7,2.10599612]
[1736923857494,1.113788,3232.2,3231.7,2.10599612]
[1736923857793,0.55,3232.4,3231.8,0.7551]
[1736923858096,3.09382,3232.3,3231.8,0.7551]
[1736923859205,3.09382,3232.3,3231.8,2.05229612]
[1736923861212,0.8044,3233.1,3232.1,1.38206004]
[1736923861398,0.8044,3233.1,3232.3,0.7551]
[1736923861599,0.8044,3233.1,3232.3,2.13716004]
[1736923861778,3.2617211,3232.9,3232.3,3.43435616]
[1736923862319,0.1684811,3232.9,3232.4,1.29719612]
[1736923862617,0.1684811,3232.9,3232.5,0.175]
[1736923863180,0.1684811,3232.9,3232.6,0.7535]
[1736923864713,0.1684811,3232.9,3232.5,0.175]
[1736923864882,1.55054114,3232.9,3232.5,0.175]
[1736923865084,3.0934,3232.7,3232.5,0.175]
[1736923866781,3.2616911,3232.9,3232.5,0.175]
[1736923867012,0.1684811,3232.9,3232.6,0.7535]
[1736923867911,0.1684811,3232.9,3232.6,2.05069612]
[1736923870719,0.1684811,3232.9,3232.6,1.29719612]
[1736923870907,3.66477421,3232.9,3232.5,1.47219612]
[1736923871108,3.09337,3232.8,3232.5,1.47219612]
[1736923871417,3.09337,3232.8,3232.5,0.175]
[1736923871613,0.57157421,3232.9,3232.2,2.05069612]
[1736923871812,3.8629,3232.5,3232.3,0.175]
[1736923872018,3.09377,3232.3,3232.2,1.29719612]
[1736923872212,3.09377,3232.3,3232.2,1.47219612]
[1736923872929,3.09377,3232.3,3232.2,0.175]
[1736923874492,4.24919,3232.5,3232.2,0.175]
[1736923876199,1.15559,3232.5,3232.2,0.175]
[1736923876394,3.09387,3232.2,3231.7,2.05069612]
[1736923876598,3.09387,3232.2,3231.8,0.175]
[1736923877026,3.09387,3232.2,3231.7,1.29719612]
[1736923877228,3.09399,3232.1,3231.8,0.175]
[1736923877429,0.7693,3232.0,3231.8,0.175]
[1736923878108,3.09399,3232.1,3231.8,0.175]
[1736923878807,0.7693,3232.2,3231.8,0.175]
[1736923882332,1.15561,3232.2,3231.8,0.175]
[1736923885743,3.0938,3232.3,3231.9,0.7712]
[1736923887245,0.7995,3232.5,3231.8,0.175]
[1736923887446,3.09386,3232.3,3231.8,0.175]
[1736923888045,0.7995,3232.5,3231.9,0.175]
[1736923888354,3.0938,3232.3,3231.9,0.175]
[1736923888649,0.30938,3232.2,3231.9,0.175]
[1736923889545,0.7995,3232.1,3231.9,0.175]
[1736923889744,3.09374,3232.4,3231.9,0.175]
[1736923891124,3.09385,3232.3,3231.9,0.175]
[1736923891323,3.09393,3232.2,3231.9,0.175]
[1736923893331,3.09371,3232.4,3231.9,0.175]
[1736923893532,4.13899754,3232.4,3231.9,0.175]
[1736923896552,1.04528754,3232.4,3231.9,0.175]
[1736923896753,3.09378,3232.3,3231.9,0.175]
[1736923897158,3.70769951,3232.3,3231.9,0.175]
[1736923897339,5.08900723,3232.3,3231.9,0.175]
[1736923897855,0.7995,3232.6,3232.0,0.8311]
[1736923898151,4.47471772,3232.7,3232.0,0.8311]
[1736923898555,5.08195621,3232.7,3232.0,2.12829612]
[1736923898765,1.98854621,3232.7,3232.1,0.8311]
[1736923899440,0.60723849,3232.7,3232.1,0.8311]
[1736923900238,0.60723849,3232.7,3232.1,1.29719612]
[1736923900548,0.60723849,3232.7,3232.2,0.8246]
[1736923902276,3.2617111,3232.9,3232.2,0.8246]
[1736923902444,3.86795768,3232.9,3232.2,0.8246]
[1736923902646,3.86795768,3232.9,3232.2,1.29719612]
[1736923902845,3.86795768,3232.9,3232.3,0.8246]
[1736923903769,3.2617111,3232.9,3232.3,0.8246]
[1736923903935,0.1684811,3232.9,3232.3,0.8246]
[1736923904133,0.1684811,3232.9,3232.3,0.85553631]
[1736923904465,0.1684811,3232.9,3232.3,0.8246]
[1736923904764,0.1684811,3232.9,3232.4,0.8246]
[1736923905334,0.1684811,3232.9,3232.4,1.29719612]
[1736923905574,0.1684811,3232.9,3232.5,0.8246]
[1736923910770,0.1684811,3232.9,3232.5,2.12179612]
[1736923911341,0.1684811,3232.9,3232.5,0.8246]
[1736923922008,0.1684811,3232.9,3232.5,2.12179612]
[1736923922208,0.1684811,3232.9,3232.6,0.76]
[1736923923060,0.1684811,3232.9,3232.8,0.7637]
[1736923923286,0.1684811,3232.9,3232.8,0.9387]
[1736923924093,0.1684811,3232.9,3232.8,2.23589612]
[1736923926762,0.1684811,3232.9,3232.8,0.9387]
[1736923927294,0.1684811,3232.9,3232.8,2.23589612]
[1736923927798,0.1684811,3232.9,3232.8,5.32918612]
[1736923928302,0.1684811,3232.9,3232.8,8.14958805]
[1736923928593,0.1684811,3232.9,3232.8,6.17286758]
[1736923928772,0.1684811,3232.9,3232.8,6.20379382]
[1736923929765,0.1684811,3232.9,3232.8,8.1446943]
[1736923930099,0.1684811,3232.9,3232.8,8.11376806]
[1736923930394,0.1684811,3232.9,3232.8,11.11376806]
[1736923930996,0.1684811,3232.9,3232.8,11.76725982]
[1736923931493,0.1684811,3232.9,3232.8,9.17286758]
[1736923932202,0.1684811,3232.9,3232.8,11.11323218]
[1736923933267,0.1684811,3232.9,3232.8,18.04286758]
[1736923934929,0.1684811,3232.9,3232.8,20.63725982]
[1736923935717,0.1684811,3232.9,3232.8,18.04286758]
[1736923937083,0.1684811,3232.9,3232.8,19.98189408]
[1736923938801,0.1684811,3232.9,3232.8,20.62794954]
[1736923941303,0.1684811,3232.9,3232.8,21.28585788]
[1736923943924,0.1684811,3232.9,3232.8,18.04286758]
[1736923944126,0.1684811,3232.9,3232.8,19.42336539]
[1736923944326,0.1684811,3232.9,3232.8,19.97336539]
[1736923945332,0.1684811,3232.9,3232.8,22.64589031]
[1736923948211,0.1684811,3232.9,3232.8,26.53747867]
[1736923948893,0.1684811,3232.9,3232.8,22.64589031]
[1736923949095,0.1684811,3232.9,3232.8,26.53747867]
[1736923949627,0.1684811,3232.9,3232.8,22.64589031]
[1736923952198,0.1684811,3232.9,3232.8,26.53747867]
[1736923959801,0.1684811,3232.9,3232.8,22.64589031]
[1736923964499,0.1684811,3232.9,3232.8,22.47089031]
[1736923964704,0.1684811,3232.9,3232.8,22.64489031]
[1736923965410,0.005,3233.4,3233.3,3.09281]
[1736923965572,0.005,3233.4,3233.3,7.5042281]
[1736923965771,0.005,3233.4,3233.3,7.47330781]
[1736923965971,0.005,3233.4,3233.3,9.61418539]
[1736923968583,0.005,3233.4,3233.3,18.48418539]
[1736923968896,0.7764,3235.4,3234.3,3.09179]
[1736923969108,0.7764,3235.3,3234.8,1.38049781]
[1736923969671,0.7764,3235.3,3234.6,1.38049781]
[1736923969873,3.09094,3235.3,3234.6,1.38049781]
[1736923970179,0.7764,3235.2,3234.6,1.29407274]
[1736923970577,0.7764,3235.2,3234.5,1.29407274]
[1736923970778,0.7764,3235.1,3234.6,1.41140997]
[1736923970981,0.7764,3235.1,3234.7,1.29407274]
[1736923971176,0.7764,3235.1,3234.8,1.38049781]
[1736923972323,0.7764,3235.1,3234.8,2.67457055]
[1736923973179,0.7764,3235.1,3235.0,1.38049781]
[1736923974400,0.7764,3235.1,3235.0,1.41140668]
[1736923974744,0.7764,3235.1,3235.0,1.38049781]
[1736923975096,0.7764,3235.4,3235.1,3.09106]
[1736923975297,0.7764,3235.4,3235.3,1.38049781]
[1736923975496,0.7764,3235.4,3235.3,1.55449781]
[1736923976403,0.7764,3235.4,3235.3,4.64539781]
[1736923977397,0.7764,3235.4,3235.3,3.2649]
[1736923978034,0.1684811,3236.1,3235.3,3.2649]
[1736923978332,0.7764,3236.0,3235.5,3.09066]
[1736923979531,0.7764,3236.0,3235.8,3.09042]
[1736923980336,0.7764,3236.0,3235.6,3.09059]
[1736923980538,0.7764,3236.0,3235.7,3.09044]
[1736923982137,0.7764,3236.0,3235.8,0.174]
[1736923982902,0.7764,3236.0,3235.8,3.26434]
[1736923984640,0.7764,3236.0,3235.9,0.174]
[1736923989965,0.7764,3236.0,3235.4,3.0]
[1736923990469,0.1684811,3236.1,3235.5,0.174]
[1736923990470,0.7838,3235.9,3235.5,0.174]
[1736923990613,0.7838,3235.8,3235.5,0.174]
[1736923990812,0.7838,3235.6,3234.9,1.28565053]
[1736923991041,0.7838,3235.6,3235.0,0.174]
[1736923991265,0.7838,3235.6,3235.1,0.174]
[1736923993531,0.7838,3235.6,3234.5,3.0]
[1736923993745,0.7838,3235.6,3234.6,0.174]
[1736923994069,0.7838,3235.5,3234.6,0.174]
[1736923994216,0.7838,3235.4,3234.5,6.09158]
[1736923994416,0.7838,3235.4,3234.7,0.174]
[1736923994831,0.7838,3235.4,3234.5,6.09158]
[1736923995062,0.7838,3235.3,3234.6,0.174]
[1736923995713,0.7838,3235.3,3234.7,0.03091075]
[1736923995967,0.7838,3235.3,3234.6,0.20491075]
[1736923997634,0.7838,3235.3,3234.7,3.0]
[1736923998847,0.7838,3235.3,3234.7,3.03091076]
[1736923999772,0.7838,3235.3,3234.8,3.09137]
[1736923999968,0.8332,3236.0,3234.9,0.03090834]
[1736924000272,0.8332,3236.0,3235.4,3.09078]
[1736924000477,0.8332,3236.0,3235.5,3.29560292]
[1736924000638,0.8332,3236.0,3235.5,3.2647]
[1736924001875,0.8332,3236.0,3235.6,3.12149254]